bitfinex-derivatives/quotes_SOLF0:USTF0_20260117
["timestamp","ask_amount","ask_price","bid_price","bid_amount"]
[1768619950869,4.83809659,144.39,144.34,3.24807392]
[1768619951068,9.34821183,144.4,144.34,3.24807392]
[1768619951270,4.83809659,144.39,144.34,3.24807392]
[1768619951469,9.34821183,144.4,144.34,3.24807392]
[1768619951673,4.83806768,144.39,144.34,3.24807392]
[1768619951873,9.34821183,144.4,144.34,3.24807392]
[1768619952074,4.83806768,144.39,144.34,3.24807392]
[1768619952373,9.34821183,144.4,144.34,3.24807392]
[1768619952573,4.83804299,144.39,144.34,3.24807392]
[1768619952775,9.34821183,144.4,144.34,3.24807392]
[1768619952976,4.83804299,144.39,144.34,3.24807392]
[1768619953178,9.34821183,144.4,144.34,3.24807392]
[1768619953473,4.83804299,144.39,144.34,3.24807392]
[1768619953777,9.34821183,144.4,144.34,3.24807392]
[1768619954171,4.83802212,144.39,144.34,3.24807392]
[1768619954380,9.34821183,144.4,144.34,3.24807392]
[1768619954579,4.83800852,144.39,144.34,3.24807392]
[1768619954781,9.34821183,144.4,144.34,3.24807392]
[1768619954984,4.83801034,144.39,144.34,3.24807392]
[1768619955276,9.34821183,144.4,144.34,3.24807392]
[1768619959878,3.11251183,144.4,144.34,3.24807392]
[1768619970085,3.03139114,144.45,144.36,2.99835117]
[1768619971079,3.03139114,144.45,144.39,0.05250632]
[1768619971791,3.11591029,144.44,144.39,0.05250632]
[1768619975595,3.11591029,144.46,144.39,3.13393588]
[1768619976794,3.11591029,144.46,144.39,9.36973588]
[1768620000013,9.34881029,144.46,144.39,9.36973588]
[1768620000616,4.88151214,144.41,144.36,3.13046641]
[1768620000814,0.04713391,144.44,144.36,3.13046641]
[1768620001015,0.04713391,144.44,144.36,4.97310569]
[1768620001215,3.03887286,144.45,144.37,3.13046641]
[1768620001514,9.27247286,144.45,144.38,6.2363]
[1768620001713,9.27247286,144.45,144.39,3.13046641]
[1768620001915,0.04976204,144.42,144.39,3.13046641]
[1768620002418,9.27247286,144.45,144.39,3.13046641]
[1768620002914,9.27247286,144.45,144.39,3.17639475]
[1768620006410,3.03887286,144.45,144.4,3.13046641]
[1768620006610,8.07523928,144.47,144.4,3.13046641]
[1768620006611,11.11411214,144.47,144.4,3.13046641]
[1768620007611,3.03887286,144.46,144.42,0.04648323]
[1768620011818,1.84263928,144.48,144.42,0.04648323]
[1768620012021,4.88151214,144.48,144.42,3.17694964]
[1768620012720,3.03887286,144.48,144.42,3.17694964]
[1768620021833,9.27087286,144.48,144.42,3.17694964]
[1768620023634,11.11351214,144.48,144.42,3.17694964]
[1768620025435,3.10338103,144.47,144.42,3.17694964]
[1768620026137,3.10338103,144.47,144.42,0.04648323]
[1768620040044,9.33608103,144.47,144.42,0.04648323]
[1768620040245,1.84188114,144.44,144.38,3.10314275]
[1768620040438,4.98241954,144.44,144.38,3.10314275]
[1768620041840,0.04789384,144.42,144.38,3.10314275]
[1768620042245,0.04789384,144.42,144.38,9.33924275]
[1768620042447,4.98241954,144.44,144.39,3.15428003]
[1768620042636,4.98241954,144.46,144.39,3.15428003]
[1768620043746,4.98241954,144.46,144.39,9.38998003]
[1768620045341,4.98241954,144.46,144.4,9.33834275]
[1768620055659,3.1405384,144.46,144.4,9.33834275]
[1768620061963,3.1405384,144.46,144.41,3.25281401]
[1768620062364,1.84188114,144.47,144.41,3.25281401]
[1768620063067,4.94517714,144.47,144.43,0.04713963]
[1768620068671,3.103296,144.46,144.43,0.04713963]
[1768620091802,1.84188114,144.49,144.43,0.04713963]
[1768620092901,1.84188114,144.49,144.44,6.2335]
[1768620093298,1.84137224,144.5,144.44,6.2335]
[1768620093695,3.01380661,144.49,144.44,6.2335]
[1768620094195,3.01380661,144.49,144.45,0.04846884]
[1768620132425,3.01380661,144.49,144.43,6.2341]
[1768620132622,1.84137224,144.5,144.43,6.2341]
[1768620132623,3.09997351,144.47,144.43,6.2341]
[1768620147250,3.09997351,144.47,144.41,9.4373724]
[1768620147552,3.09997351,144.47,144.41,6.2346]
[1768620151956,3.09997351,144.47,144.39,9.24618533]
[1768620152156,3.08805068,144.45,144.39,9.24618533]
[1768620152952,0.04770442,144.43,144.39,9.24618533]
[1768620153755,0.04770442,144.43,144.4,6.2354]
[1768620154959,3.08805068,144.45,144.4,6.28704861]
[1768620160265,3.08805068,144.45,144.4,9.45347647]
[1768620167069,9.32055068,144.47,144.41,3.16642786]
[1768620174577,3.08805068,144.47,144.42,2.98491386]
[1768620175477,3.08805068,144.47,144.43,0.04683756]
[1768620276379,3.08805068,144.47,144.41,6.235]
[1768620276780,3.17859159,144.45,144.41,6.235]
[1768620276980,3.17859159,144.45,144.39,19.18449057]
[1768620281283,3.17859159,144.45,144.39,22.2032173]
[1768620281483,3.17859159,144.45,144.4,6.2354]
[1768620303302,3.17859159,144.45,144.4,9.31256743]
[1768620303596,0.05032506,144.46,144.41,9.31216743]
[1768620319318,5.08577273,144.46,144.39,19.18439057]
[1768620319523,5.08577273,144.46,144.39,6.2355]
[1768620321325,5.08577273,144.46,144.4,3.07716743]
[1768620336943,11.31867273,144.46,144.4,3.07716743]
[1768620339346,9.4763502,144.46,144.4,3.07716743]
[1768620370071,3.27723775,144.45,144.4,3.07716743]
[1768620386787,6.2339,144.44,144.4,3.07716743]
[1768620386978,3.26206603,144.43,144.37,99.111896]
[1768620387180,5.10428082,144.43,144.37,99.111896]
[1768620387485,3.26206603,144.42,144.37,99.111896]
[1768620387884,0.04420472,144.41,144.37,99.111896]
[1768620405601,0.04420472,144.41,144.37,102.15354137]
[1768620423227,6.27920472,144.41,144.37,102.15354137]
[1768620425030,6.27920472,144.41,144.37,3.04164537]
[1768620445345,6.27920472,144.41,144.35,264.98116829]
[1768620448548,6.27920472,144.41,144.36,3.08116829]
[1768620456148,9.26182161,144.41,144.36,3.08116829]
[1768620460355,2.98261689,144.4,144.34,9.47077817]
[1768620463163,2.98261689,144.4,144.34,22.4490686]
[1768620464757,0.04420472,144.41,144.35,6.2376]
[1768620464956,0.04420472,144.41,144.36,3.23277817]
[1768620465858,0.04420472,144.41,144.37,3.23277817]
[1768620469856,0.04420472,144.41,144.36,6.2371]
[1768620480375,0.04420472,144.41,144.36,3.15372023]
[1768620480564,3.01646882,144.41,144.36,3.15372023]
[1768620483578,4.8599517,144.41,144.36,3.15372023]
[1768620498686,3.01646882,144.41,144.36,3.15372023]
[1768620506796,0.04420472,144.41,144.36,3.15372023]
[1768620511498,6.27920472,144.41,144.36,3.15372023]
[1768620525310,0.04420472,144.41,144.36,9.39092023]
[1768620525505,8.07768089,144.43,144.37,3.15917902]
[1768620525705,6.2344,144.43,144.37,3.15917902]
[1768620528110,3.03511672,144.44,144.38,3.15917902]
[1768620529002,3.03511672,144.44,144.4,0.04762661]
[1768620541315,3.28092071,144.43,144.4,0.04762661]
[1768620552738,3.28092071,144.43,144.37,6.2366]
[1768620553733,3.28092071,144.43,144.37,9.23848815]
[1768620566051,3.08104652,144.4,144.34,12.97829043]
[1768620566244,3.08104652,144.4,144.33,2.97182633]
[1768620567744,3.08104652,144.4,144.34,9.20972633]
[1768620572656,3.08104652,144.4,144.34,22.18801676]
[1768620575254,3.08104652,144.4,144.34,9.20972633]
[1768620583858,3.08104652,144.4,144.35,6.2375]
[1768620595567,3.28454079,144.46,144.39,3.12283227]
[1768620596762,3.28454079,144.46,144.4,6.2354]
[1768620600161,1.84372281,144.45,144.39,3.12283227]
[1768620600465,3.28454079,144.44,144.38,6.2359]
[1768620602869,3.28454079,144.44,144.38,9.35873227]
[1768620606371,3.28454079,144.44,144.38,3.12283227]
[1768620614281,3.28454079,144.44,144.38,9.35913227]
[1768620615282,3.28454079,144.44,144.39,3.12283227]
[1768620636199,3.28454079,144.44,144.38,6.2363]
[1768620636896,5.1282636,144.44,144.38,6.2363]
[1768620637900,5.1282636,144.44,144.37,3.0633004]
[1768620638911,11.3620636,144.44,144.37,3.0633004]
[1768620641302,11.3620636,144.44,144.37,9.3000004]
[1768620643808,9.27343592,144.43,144.38,3.0633004]
[1768620645310,11.1166707,144.43,144.38,3.0633004]
[1768620665625,11.1166707,144.43,144.39,0.05206379]
[1768620669428,9.27343592,144.43,144.39,0.05206379]
[1768620672041,3.14637925,144.42,144.39,0.05206379]
[1768620691162,3.08733045,144.41,144.36,12.97829043]
[1768620691365,3.08733045,144.41,144.33,12.97829043]
[1768620691560,3.08733045,144.39,144.33,12.97829043]
[1768620691756,9.32373045,144.38,144.32,3.19668505]
[1768620692768,0.04832062,144.36,144.32,3.19668505]
[1768620694356,3.13565107,144.36,144.3,278.05497548]
[1768620694557,3.13565107,144.36,144.3,265.07668505]
[1768620695462,3.13565107,144.36,144.31,3.19668505]
[1768620703268,3.13565107,144.36,144.3,261.94]
[1768620703471,3.13565107,144.36,144.29,364.16337915]
[1768620703772,3.13565107,144.36,144.29,370.40337915]
[1768620710778,3.13565107,144.36,144.3,3.19668505]
[1768620722499,9.37285107,144.36,144.3,3.19668505]
[1768620723295,3.13565107,144.36,144.3,3.19668505]
[1768620725193,3.13565107,144.36,144.3,9.43638505]
[1768620726890,3.13565107,144.36,144.3,3.19668505]
[1768620728995,3.13565107,144.36,144.29,268.2201]
[1768620729501,3.13565107,144.36,144.29,271.19285194]
[1768620731199,3.13565107,144.36,144.3,2.97275194]
[1768620740007,3.13565107,144.36,144.31,2.97275194]
[1768620743711,0.04832062,144.36,144.31,2.97275194]
[1768620745311,3.15592692,144.36,144.31,2.97275194]
[1768620746113,3.15592692,144.36,144.3,12.97829043]
[1768620747007,3.15592692,144.36,144.3,15.96330893]
[1768620759626,3.15592692,144.36,144.3,2.9850185]
[1768620760829,9.45565638,144.35,144.3,2.9850185]
[1768620761125,3.21795638,144.35,144.3,2.9850185]
[1768620762526,3.21795638,144.35,144.28,284.46660508]
[1768620762827,5.06251554,144.35,144.28,284.46660508]
[1768620763525,0.04968914,144.33,144.28,284.46660508]
[1768620763826,0.04968914,144.33,144.29,3.24771465]
[1768620764525,0.04968914,144.33,144.28,12.97829043]
[1768620764729,0.04968914,144.33,144.27,278.22600508]
[1768620764919,0.04968914,144.33,144.28,3.24771465]
[1768620766721,5.11220468,144.33,144.26,16.22600508]
[1768620766927,5.11220468,144.33,144.26,3.24771465]
[1768620767328,3.21795638,144.32,144.26,3.24771465]
[1768620776944,3.21795638,144.32,144.26,9.48911465]
[1768620777645,3.21795638,144.32,144.26,3.24771465]
[1768620778243,3.21795638,144.32,144.26,9.48921465]
[1768620795065,9.45695638,144.32,144.26,3.24771465]
[1768620809470,3.14011645,144.3,144.24,6.2423]
[1768620809668,3.14011645,144.3,144.23,3.09301865]
[1768620809863,3.14011645,144.3,144.23,16.07130908]
[1768620810469,0.0514433,144.28,144.23,16.07130908]
[1768620810772,0.0514433,144.28,144.25,6.2419]
[1768620812761,0.0514433,144.28,144.23,16.07130908]
[1768620813767,0.0514433,144.28,144.24,6.2423]
[1768620814270,0.0514433,144.28,144.23,3.09301865]
[1768620838373,3.08797019,144.28,144.22,6.2428]
[1768620838684,3.08797019,144.28,144.22,271.64720615]
[1768620839180,3.08797019,144.28,144.23,3.28440615]
[1768620843481,3.08797019,144.28,144.21,281.34159043]
[1768620843482,3.08797019,144.28,144.22,3.28440615]
[1768620843986,3.08797019,144.28,144.22,9.52760615]
[1768620848393,3.08797019,144.28,144.23,3.28440615]
[1768620851285,0.0514433,144.28,144.23,3.28440615]
[1768620867611,0.0514433,144.28,144.23,9.52710615]
[1768620868713,0.0514433,144.28,144.24,3.03645529]
[1768620882825,6.2922433,144.28,144.24,3.03645529]
[1768620883021,6.2922433,144.28,144.24,2.73065208]
[1768620894338,6.2411,144.27,144.22,3.18254653]
[1768620900393,0.0514433,144.28,144.22,3.18254653]
[1768620901040,0.0514433,144.28,144.23,3.18254653]
[1768620904647,214.87319067,144.32,144.25,3.18254653]
[1768620906249,6.2396,144.31,144.25,3.18254653]
[1768620906647,9.42793523,144.31,144.25,3.18254653]
[1768620919352,3.18833523,144.31,144.25,3.18254653]
[1768620924863,3.18833523,144.31,144.25,9.42444653]
[1768620939971,3.18833523,144.31,144.26,6.2415]
[1768620942772,3.18833523,144.31,144.26,9.42147877]
[1768620943072,1.84665283,144.32,144.27,9.42087877]
[1768620943871,5.07544968,144.32,144.27,9.42087877]
[1768620946475,3.22879685,144.32,144.27,9.42087877]
[1768620952083,1.84580992,144.33,144.28,6.2405]
[1768620952275,3.26106917,144.34,144.28,9.31969349]
[1768620952578,4.83236963,144.33,144.28,9.31969349]
[1768620952882,3.26106917,144.34,144.28,9.31969349]
[1768620960185,1.84580992,144.35,144.29,3.07919349]
[1768620960682,3.26106917,144.36,144.3,3.07919349]
[1768620961884,8.08260992,144.37,144.31,3.07919349]
[1768620962083,6.2368,144.37,144.31,3.07919349]
[1768620963991,9.49786917,144.37,144.31,3.07919349]
[1768620964486,3.26106917,144.37,144.31,3.07919349]
[1768620969085,6.2366,144.38,144.32,3.07919349]
[1768620970090,9.49766917,144.38,144.32,3.07919349]
[1768620970693,3.26106917,144.38,144.32,3.07919349]
[1768620976592,3.26106917,144.38,144.34,0.05213415]
[1768621024539,3.26106917,144.38,144.31,9.27018231]
[1768621024540,3.25417465,144.37,144.31,3.03118231]
[1768621024841,3.29788916,144.37,144.31,3.03118231]
[1768621057772,3.29788916,144.37,144.32,2.99644085]
[1768621057971,0.04371451,144.37,144.32,2.99644085]
[1768621058474,0.04371451,144.37,144.32,9.23514085]
[1768621074985,0.04371451,144.37,144.33,9.45035702]
[1768621075189,0.04371451,144.37,144.34,3.21205702]
[1768621079286,0.04371451,144.37,144.34,9.45005702]
[1768621081890,0.04371451,144.37,144.34,3.21205702]
[1768621089795,0.04371451,144.37,144.34,3.16061371]
[1768621096993,6.28051451,144.37,144.34,3.16061371]
[1768621103109,6.28051451,144.37,144.31,12.97829043]
[1768621103309,6.28051451,144.37,144.32,3.1535923]
[1768621135948,0.04371451,144.37,144.32,3.1535923]
[1768621141250,3.12116496,144.37,144.32,3.1535923]
[1768621141446,3.07745045,144.36,144.31,12.97829043]
[1768621141646,3.07745045,144.36,144.3,22.39482827]
[1768621143052,3.07745045,144.36,144.31,3.17683784]
[1768621149757,9.31485045,144.36,144.31,3.17683784]
[1768621170086,3.07745045,144.36,144.31,3.17683784]
[1768621179201,9.31465045,144.36,144.3,261.98]
[1768621179485,3.07846199,144.34,144.27,278.17630736]
[1768621180289,3.07846199,144.34,144.27,265.19801693]
[1768621180489,0.05296221,144.32,144.27,265.19801693]
[1768621180789,0.05296221,144.32,144.27,271.43871693]
[1768621184191,0.05296221,144.32,144.28,6.2406]
[1768621194104,0.05296221,144.32,144.28,9.36096756]
[1768621199206,3.12781146,144.36,144.3,3.12036756]
[1768621199407,3.12781146,144.36,144.3,265.16036756]
[1768621202903,9.36501146,144.36,144.3,265.16036756]
[1768621215110,9.36501146,144.36,144.31,3.12036756]
[1768621218022,3.12781146,144.36,144.31,3.12036756]
[1768621218410,172.75941056,144.37,144.31,3.12036756]
[1768621218610,3.12781146,144.39,144.31,3.12036756]
[1768621219016,3.12781146,144.39,144.33,3.12036756]
[1768621220107,3.12781146,144.39,144.33,9.35876756]
[1768621220718,3.12781146,144.39,144.34,3.12036756]
[1768621225419,3.12781146,144.39,144.34,9.35816756]
[1768621229127,3.12781146,144.39,144.34,3.12036756]
[1768621263058,9.23389639,144.42,144.35,3.16834184]
[1768621263759,9.23389639,144.42,144.35,9.40584184]
[1768621271966,9.23389639,144.42,144.36,3.16834184]
[1768621279874,2.99909639,144.41,144.36,3.16834184]
[1768621286772,9.23419639,144.41,144.34,3.07397274]
[1768621287073,11.07805794,144.41,144.34,3.07397274]
[1768621287778,11.07805794,144.41,144.34,9.31197274]
[1768621287979,11.07805794,144.41,144.35,3.07397274]
[1768621306394,4.84295794,144.41,144.35,9.31157274]
[1768621306993,2.99909639,144.41,144.35,9.31157274]
[1768621307194,4.84295794,144.41,144.35,9.31157274]
[1768621317303,2.99909639,144.41,144.35,9.31157274]
[1768621321914,2.99909639,144.41,144.36,9.28355775]
[1768621323105,2.99909639,144.41,144.36,3.04645775]
[1768621344032,2.99909639,144.41,144.36,9.28355775]
[1768621391873,2.99909639,144.41,144.36,3.04645775]
[1768621410694,2.99909639,144.41,144.35,6.2375]
[1768621411394,2.99909639,144.41,144.35,9.26457745]
[1768621413892,2.99909639,144.41,144.36,3.02707745]
[1768621421792,2.99909639,144.41,144.35,6.2375]
[1768621422199,2.99909639,144.41,144.37,0.05221441]
[1768621430304,2.99909639,144.41,144.33,143.6952007]
[1768621430606,2.99909639,144.41,144.33,130.71691027]
[1768621430607,3.1166943,144.4,144.33,130.71691027]
[1768621430805,3.16801693,144.4,144.33,130.71691027]
[1768621431807,3.19782849,144.39,144.33,130.71691027]
[1768621435811,3.19782849,144.39,144.33,136.95531027]
[1768621438309,3.19782849,144.39,144.34,3.17950903]
[1768621440909,0.05132263,144.4,144.34,3.17950903]
[1768621441811,0.05132263,144.4,144.36,3.17950903]
[1768621453826,6.2341,144.44,144.37,3.17950903]
[1768621454226,6.2341,144.44,144.37,3.22374699]
[1768621455028,6.2341,144.44,144.38,3.17950903]
[1768621459228,9.43192849,144.44,144.38,3.17950903]
[1768621460626,11.2756278,144.44,144.38,3.17950903]
[1768621472438,9.43192849,144.44,144.38,3.17950903]
[1768621478837,11.2756278,144.44,144.38,3.17950903]
[1768621479736,196.89064237,144.45,144.38,3.17950903]
[1768621479942,9.46394976,144.46,144.4,3.17486275]
[1768621480641,9.46394976,144.46,144.42,0.04739218]
[1768621482642,3.23094976,144.46,144.42,0.04739218]
[1768621485942,3.23094976,144.48,144.42,3.22225493]
[1768621487145,3.23094976,144.48,144.42,9.45675493]
[1768621490744,3.23094976,144.5,144.43,3.17486275]
[1768621491047,3.23094976,144.5,144.44,3.17486275]
[1768621491748,3.23094976,144.5,144.46,0.04793658]
[1768621496753,3.07767,144.52,144.46,3.14665664]
[1768621497850,3.07767,144.52,144.46,9.37935664]
[1768621501059,4.92136931,144.51,144.46,9.37935664]
[1768621501453,4.91854102,144.51,144.46,9.37935664]
[1768621502165,1.84087102,144.51,144.46,9.37935664]
[1768621502367,4.91854102,144.53,144.47,9.33102006]
[1768621506458,1.84087102,144.51,144.47,3.09872006]
[1768621509672,1.84087102,144.51,144.46,6.28073658]
[1768621509673,4.91854102,144.51,144.46,6.28073658]
[1768621511181,3.07767,144.5,144.42,261.76]
[1768621511465,3.07767,144.5,144.39,3.09872006]
[1768621511466,1.84087102,144.44,144.39,3.09872006]
[1768621512967,0.05230403,144.43,144.39,3.09872006]
[1768621516673,6.2326,144.47,144.4,3.09872006]
[1768621517068,6.2326,144.47,144.4,3.14877476]
[1768621518773,3.07767,144.46,144.4,3.14877476]
[1768621524775,3.27548801,144.48,144.41,3.10728788]
[1768621525773,3.27548801,144.48,144.43,0.05111311]
[1768621531387,5.1152738,144.5,144.44,2.99221701]
[1768621532487,3.27440278,144.49,144.44,2.99221701]
[1768621533100,3.27440278,144.49,144.43,6.28511311]
[1768621555399,3.27440278,144.49,144.43,9.4596599]
[1768621555607,5.01705309,144.48,144.43,0.05111311]
[1768621555802,3.17618207,144.47,144.43,0.05111311]
[1768621556196,3.17618207,144.47,144.41,3.17454679]
[1768621556698,3.17618207,144.47,144.44,0.04400856]
[1768621556898,3.17618207,144.46,144.44,0.04400856]
[1768621557302,3.17618207,144.46,144.41,3.17454679]
[1768621557503,3.22273035,144.46,144.41,3.17454679]
[1768621575017,3.22273035,144.46,144.41,9.40944679]
[1768621590129,0.04654828,144.46,144.42,6.2345]
[1768621600635,0.04654828,144.46,144.42,9.42236647]
[1768621608239,0.04654828,144.46,144.42,3.18786647]
[1768621615752,6.27944828,144.46,144.42,3.18786647]
[1768621623555,0.04654828,144.46,144.42,3.18786647]
[1768621662295,1.8421463,144.5,144.42,3.18786647]
[1768621662490,1.8421463,144.5,144.44,3.29616425]
[1768621663794,8.0733463,144.5,144.44,3.29616425]
[1768621667197,6.2312,144.5,144.44,3.29616425]
[1768621667393,8.0733463,144.5,144.44,3.29616425]
[1768621677204,144.35564816,144.52,144.45,3.12303839]
[1768621677205,152.42839446,144.52,144.45,3.12303839]
[1768621678206,152.42839446,144.52,144.47,3.17457476]
[1768621680199,155.63792863,144.52,144.47,3.17457476]
[1768621685310,1.84090013,144.51,144.47,3.17457476]
[1768621687212,153.79578233,144.52,144.47,3.17457476]
[1768621687407,1.84090013,144.51,144.47,3.17457476]
[1768621696932,1.84090013,144.51,144.47,9.40697476]
[1768621699635,1.84090013,144.51,144.48,3.12303839]
[1768621701937,1.3e-07,144.51,144.48,9.35493839]
[1768621706336,131.01847355,144.52,144.48,9.35493839]
[1768621706535,1.3e-07,144.51,144.48,9.35493839]
[1768621710040,1.3e-07,144.54,144.5,3.04835268]
[1768621710946,1.3e-07,144.54,144.51,0.04675241]
[1768621711143,1.3e-07,144.54,144.5,3.04835268]
[1768621711439,0.05305214,144.53,144.5,3.04835268]
[1768621711832,0.05305214,144.53,144.51,6.2306]
[1768621712038,0.05305214,144.53,144.5,3.04835268]
[1768621712738,0.05305214,144.53,144.51,6.2306]
[1768621712943,0.05305214,144.53,144.5,3.04835268]
[1768621713344,1.3e-07,144.54,144.51,0.04764435]
[1768621713841,1.3e-07,144.54,144.51,3.10513036]
[1768621714145,1.3e-07,144.54,144.51,9.33573036]
[1768621714846,1.84090013,144.55,144.51,9.33573036]
[1768621718952,1.84090013,144.55,144.51,3.10513036]
[1768621722754,1.84090013,144.53,144.49,3.05748601]
[1768621727563,5.10762255,144.53,144.47,3.05748601]
[1768621728662,0.04656247,144.51,144.47,3.05748601]
[1768621733660,6.2284,144.57,144.5,3.06127023]
[1768621734766,6.2284,144.57,144.51,3.06127023]
[1768621735264,6.2284,144.57,144.52,3.10711106]
[1768621738267,6.2286,144.56,144.52,3.10711106]
[1768621749873,9.52185798,144.56,144.52,0.04584083]
[1768621751679,3.29325798,144.55,144.52,0.04584083]
[1768621751880,9.52225798,144.55,144.52,0.04584083]
[1768621754477,9.52225798,144.55,144.49,3.06127023]
[1768621754674,11.36210156,144.55,144.49,3.06127023]
[1768621754874,11.4098313,144.55,144.49,3.06127023]
[1768621758184,3.29325798,144.54,144.49,3.06127023]
[1768621761383,3.29325798,144.54,144.48,6.2316]
[1768621762090,3.29325798,144.54,144.48,9.40183621]
[1768621766089,3.29325798,144.54,144.48,3.17023621]
[1768621766288,9.5144431,144.53,144.48,3.17023621]
[1768621767285,0.046739,144.52,144.48,3.17023621]
[1768621771686,0.046739,144.52,144.46,9.29888317]
[1768621771887,6.2293,144.55,144.47,3.06638317]
[1768621772092,6.2293,144.55,144.48,3.06638317]
[1768621772290,9.31013844,144.55,144.48,3.11551249]
[1768621774394,6.2294,144.54,144.48,3.11551249]
[1768621782495,9.31023844,144.54,144.48,3.11551249]
[1768621786018,9.31073844,144.53,144.48,3.11551249]
[1768621786614,3.08083844,144.52,144.48,0.04912932]
[1768621790714,3.08083844,144.51,144.48,0.04912932]
[1768621802432,9.31163844,144.51,144.48,0.04912932]
[1768621804131,3.08083844,144.51,144.48,0.04912932]
[1768621811129,9.31163844,144.51,144.48,0.04912932]
[1768621824151,9.31163844,144.51,144.44,9.39429504]
[1768621824152,2.97518833,144.5,144.44,9.39429504]
[1768621825352,2.97518833,144.49,144.42,3.15451502]
[1768621826763,0.04776427,144.47,144.43,9.38861502]
[1768621829657,9.20568833,144.52,144.45,3.15451502]
[1768621829847,2.97518833,144.52,144.45,3.15451502]
[1768621830752,2.97518833,144.52,144.46,6.2328]
[1768621830962,2.97518833,144.52,144.47,3.24521204]
[1768621831257,2.97518833,144.52,144.47,3.29692234]
[1768621831753,2.97518833,144.52,144.47,9.52912234]
[1768621843863,2.97518833,144.52,144.48,6.2319]
[1768621853978,2.97518833,144.52,144.47,3.29692234]
[1768621854183,3.15169263,144.51,144.47,0.0517103]
[1768621854480,4.99270539,144.5,144.47,0.0517103]
[1768621854985,3.15169263,144.49,144.44,6.2333]
[1768621855165,1.84101276,144.48,144.44,6.2333]
[1768621857779,3.15169263,144.49,144.45,6.2331]
[1768621858080,1.84101276,144.48,144.45,6.2331]
[1768621858682,1.88597206,144.48,144.45,6.2331]
[1768621858982,0.0449593,144.48,144.45,6.2331]
[1768621860780,147.42261732,144.54,144.46,3.04401958]
[1768621860781,3.15169263,144.53,144.46,3.04401958]
[1768621861288,3.15169263,144.53,144.47,9.27631958]
[1768621862082,3.15169263,144.53,144.49,0.05311225]
[1768621867597,3.15169263,144.51,144.45,6.2332]
[1768621872490,3.15169263,144.5,144.44,3.04401958]
[1768621872695,3.15169263,144.49,144.44,3.04401958]
[1768621873588,0.04933087,144.48,144.44,3.04401958]
[1768621884500,0.04933087,144.48,144.42,264.74378771]
[1768621884992,0.04933087,144.48,144.43,2.98378771]
[1768621893097,9.27900761,144.48,144.43,2.98378771]
[1768621893597,2.99767674,144.47,144.42,6.2345]
[1768621894000,2.99767674,144.47,144.42,9.3610362]
[1768621896496,2.99767674,144.47,144.42,3.1265362]
[1768621901509,9.23027674,144.47,144.42,3.1265362]
[1768621905111,9.23057674,144.46,144.4,264.9065362]
[1768621906004,0.05190961,144.44,144.4,264.9065362]
[1768621906407,0.05190961,144.44,144.4,3.1265362]
[1768621910005,0.05190961,144.44,144.38,3.1265362]
[1768621910206,6.28570961,144.44,144.38,3.1265362]
[1768621916024,9.30761956,144.44,144.38,3.1265362]
[1768621918733,6.2344,144.43,144.38,3.1265362]
[1768621919413,3.07381956,144.44,144.33,193.38115998]
[1768621919414,3.02190995,144.42,144.35,3.06650368]
[1768621919723,3.02190995,144.41,144.35,3.06650368]
[1768621920318,0.0444079,144.39,144.35,3.06650368]
[1768621920924,0.0444079,144.39,144.32,6.2385]
[1768621920925,0.0444079,144.39,144.33,3.06650368]
[1768621921918,6.2803079,144.39,144.33,3.06650368]
[1768621923926,0.0444079,144.39,144.33,3.06650368]
[1768621927329,3.02190995,144.38,144.33,3.06650368]
[1768621927530,3.02190995,144.38,144.3,3.06650368]
[1768621928527,0.05185025,144.35,144.3,3.06650368]
[1768621932420,3.0737602,144.35,144.3,3.06650368]
[1768621933932,9.3114602,144.35,144.3,3.06650368]
[1768621938029,3.02190995,144.34,144.28,3.06650368]
[1768621938925,0.05199898,144.32,144.28,3.06650368]
[1768621943936,0.05199898,144.32,144.24,6.2421]
[1768621944240,3.32148001,144.32,144.26,3.23308703]
[1768621945932,9.56048001,144.32,144.26,3.23308703]
[1768621951545,6.2394,144.31,144.26,3.23308703]
[1768621957255,3.32148001,144.32,144.26,3.23308703]
[1768621959947,3.25266996,144.31,144.26,3.23308703]
[1768621968563,0.05199898,144.32,144.27,3.21835691]
[1768621969169,3.25266996,144.35,144.27,3.21835691]
[1768621969868,3.25266996,144.35,144.29,9.45845691]
[1768621970068,3.25266996,144.35,144.3,3.21835691]
[1768621971171,3.25266996,144.35,144.31,0.04518439]
[1768621989389,3.25907901,144.34,144.31,0.04518439]
[1768621992983,3.25907901,144.34,144.26,3.03747718]
[1768621993189,3.25907901,144.32,144.26,3.03747718]
[1768621994390,0.04876095,144.3,144.26,3.03747718]
[1768621994790,0.04876095,144.3,144.26,9.27857718]
[1768621998491,97.0132,144.38,144.28,3.03747718]
[1768621998492,3.25907901,144.34,144.28,3.03747718]
[1768621999991,3.25907901,144.34,144.28,9.27797718]
[1768622001695,9.49717901,144.34,144.27,0.05223335]
[1768622001886,3.10465206,144.33,144.27,0.05223335]
[1768622002589,3.10465206,144.33,144.27,3.12285788]
[1768622002800,3.10465206,144.33,144.27,9.36385788]
[1768622010200,3.10465206,144.33,144.28,3.07062453]
[1768622010395,6.2381,144.34,144.28,3.07062453]